[Event "Late-Titled-Tuesday-Blitz-September-19-2023"]
[Site "Chess.com"]
[Date "2023.09.19"]
[Round "10"]
[White "IlanSchnaider"]
[Black "jaskol95"]
[Result "0-1"]
[WhiteElo "2748"]
[BlackElo "2585"]
[TimeControl "180+1"]
[EndTime "15:57:53 PDT"]
[Termination "jaskol95 won by checkmate"]

1. e4 {[%clk 0:02:52.7]} 1... d5 {[%clk 0:02:59.4]} 2. exd5 {[%clk 0:02:52.1]}
2... Nf6 {[%clk 0:03:00]} 3. d4 {[%clk 0:02:50.6]} 3... Bg4 {[%clk 0:03:00.5]}
4. Bb5+ {[%clk 0:02:39.9]} 4... Nbd7 {[%clk 0:02:55.4]} 5. f3 {[%clk 0:02:37.9]}
5... Bf5 {[%clk 0:02:53.4]} 6. Nc3 {[%clk 0:02:36.6]} 6... a6 {[%clk 0:02:51.3]}
7. Bd3 {[%clk 0:02:35.1]} 7... Bxd3 {[%clk 0:02:48.4]} 8. Qxd3 {[%clk 0:02:36]}
8... Nb6 {[%clk 0:02:48.6]} 9. Nge2 {[%clk 0:02:36]} 9... Nfxd5 {[%clk
0:02:47.1]} 10. Bd2 {[%clk 0:02:31.7]} 10... e6 {[%clk 0:02:45.6]} 11. a3 {[%clk
0:02:30.7]} 11... Be7 {[%clk 0:02:40.8]} 12. O-O-O {[%clk 0:02:29.1]} 12... Qd7
{[%clk 0:02:34.4]} 13. Ne4 {[%clk 0:02:24.5]} 13... Qb5 {[%clk 0:02:23.2]} 14.
Be1 {[%clk 0:02:07.7]} 14... Nc4 {[%clk 0:02:08.9]} 15. Qb3 {[%clk 0:01:35.3]}
15... Qxb3 {[%clk 0:01:49.5]} 16. cxb3 {[%clk 0:01:36.2]} 16... Nce3 {[%clk
0:01:40.7]} 17. Rd3 {[%clk 0:01:34.7]} 17... Nxg2 {[%clk 0:01:38.1]} 18. Bg3
{[%clk 0:01:24.1]} 18... Nge3 {[%clk 0:01:35.3]} 19. N2c3 {[%clk 0:01:14.3]}
19... Nf5 {[%clk 0:01:23]} 20. Rg1 {[%clk 0:01:06.2]} 20... O-O {[%clk
0:01:10.9]} 21. Kb1 {[%clk 0:00:53.5]} 21... Nxg3 {[%clk 0:01:05.9]} 22. Rxg3
{[%clk 0:00:50.9]} 22... c6 {[%clk 0:01:00.9]} 23. Kc2 {[%clk 0:00:48.7]} 23...
Rfd8 {[%clk 0:00:58.8]} 24. Na4 {[%clk 0:00:45.5]} 24... Nf4 {[%clk 0:00:41]}
25. Rd2 {[%clk 0:00:43.2]} 25... Rd5 {[%clk 0:00:37]} 26. Nb6 {[%clk 0:00:40.6]}
26... Rad8 {[%clk 0:00:33.8]} 27. Nxd5 {[%clk 0:00:40.4]} 27... cxd5 {[%clk
0:00:33.9]} 28. Nc3 {[%clk 0:00:35.4]} 28... Bf6 {[%clk 0:00:30.2]} 29. b4
{[%clk 0:00:35.1]} 29... Rc8 {[%clk 0:00:29.9]} 30. Rg4 {[%clk 0:00:33]} 30...
Ng6 {[%clk 0:00:30]} 31. Kb3 {[%clk 0:00:33.2]} 31... Ne7 {[%clk 0:00:30]} 32.
Rc2 {[%clk 0:00:28.5]} 32... Kf8 {[%clk 0:00:20.5]} 33. Ne2 {[%clk 0:00:19.7]}
33... Rxc2 {[%clk 0:00:19.6]} 34. Kxc2 {[%clk 0:00:20.6]} 34... Nf5 {[%clk
0:00:20.2]} 35. Kd3 {[%clk 0:00:20.3]} 35... Ke7 {[%clk 0:00:20.1]} 36. Rg1
{[%clk 0:00:20.4]} 36... Nd6 {[%clk 0:00:20.3]} 37. b3 {[%clk 0:00:19.7]} 37...
Kd7 {[%clk 0:00:16.4]} 38. a4 {[%clk 0:00:19.9]} 38... g6 {[%clk 0:00:15.9]} 39.
h4 {[%clk 0:00:17.1]} 39... h5 {[%clk 0:00:14.2]} 40. Rh1 {[%clk 0:00:08.3]}
40... Nf5 {[%clk 0:00:14.2]} 41. b5 {[%clk 0:00:08.8]} 41... axb5 {[%clk
0:00:13.8]} 42. axb5 {[%clk 0:00:09.7]} 42... Bxh4 {[%clk 0:00:13.6]} 43. Rc1
{[%clk 0:00:07]} 43... Be7 {[%clk 0:00:12.3]} 44. b6 {[%clk 0:00:05.5]} 44...
Bd6 {[%clk 0:00:12.9]} 45. Ra1 {[%clk 0:00:05.2]} 45... h4 {[%clk 0:00:12.7]}
46. Ng1 {[%clk 0:00:03]} 46... Kc6 {[%clk 0:00:11.7]} 47. Nh3 {[%clk 0:00:03.7]}
47... Kxb6 {[%clk 0:00:11.4]} 48. Ng5 {[%clk 0:00:04.4]} 48... Bf4 {[%clk
0:00:10.5]} 49. Nh3 {[%clk 0:00:03.5]} 49... Bd6 {[%clk 0:00:10.2]} 50. Ng5
{[%clk 0:00:03.4]} 50... Bf4 {[%clk 0:00:10.5]} 51. Nh3 {[%clk 0:00:03.9]} 51...
Be3 {[%clk 0:00:10]} 52. Re1 {[%clk 0:00:03.6]} 52... Bxd4 {[%clk 0:00:10.1]}
53. Ng5 {[%clk 0:00:03.8]} 53... Bf2 {[%clk 0:00:08.1]} 54. Rf1 {[%clk
0:00:03.5]} 54... Bc5 {[%clk 0:00:06.8]} 55. Rh1 {[%clk 0:00:03]} 55... Be7
{[%clk 0:00:06.1]} 56. Nxf7 {[%clk 0:00:03.4]} 56... Ng3 {[%clk 0:00:06]} 57.
Rh3 {[%clk 0:00:03.6]} 57... Nh5 {[%clk 0:00:06.5]} 58. Kc2 {[%clk 0:00:01.9]}
58... Nf4 {[%clk 0:00:07.1]} 59. Rh1 {[%clk 0:00:02.6]} 59... h3 {[%clk
0:00:07.6]} 60. Ne5 {[%clk 0:00:03]} 60... g5 {[%clk 0:00:06.1]} 61. Nd3 {[%clk
0:00:03.1]} 61... Ne2 {[%clk 0:00:03.7]} 62. Rxh3 {[%clk 0:00:03]} 62... Nd4+
{[%clk 0:00:04.2]} 63. Kc3 {[%clk 0:00:03.6]} 63... Bf6 {[%clk 0:00:04.8]} 64.
Kd2 {[%clk 0:00:03.5]} 64... Nxb3+ {[%clk 0:00:04.8]} 65. Ke3 {[%clk 0:00:04.2]}
65... Nd4 {[%clk 0:00:03.9]} 66. Rh6 {[%clk 0:00:04.1]} 66... Nf5+ {[%clk
0:00:04.5]} 67. Kd2 {[%clk 0:00:04.6]} 67... Nxh6 {[%clk 0:00:04.7]} 68. Nf2
{[%clk 0:00:05.5]} 68... Nf5 {[%clk 0:00:05]} 69. Ng4 {[%clk 0:00:06.2]} 69...
Bg7 {[%clk 0:00:05]} 70. Kd3 {[%clk 0:00:07.1]} 70... Kc5 {[%clk 0:00:05.3]} 71.
Nf2 {[%clk 0:00:07.6]} 71... b5 {[%clk 0:00:05.7]} 72. Kc2 {[%clk 0:00:08.1]}
72... Ne3+ {[%clk 0:00:05.8]} 73. Kd3 {[%clk 0:00:08.3]} 73... Nf5 {[%clk
0:00:06.5]} 74. Kd2 {[%clk 0:00:08]} 74... Nd4 {[%clk 0:00:06.9]} 75. Nd3+
{[%clk 0:00:08.8]} 75... Kc4 {[%clk 0:00:07.5]} 76. Nb2+ {[%clk 0:00:09.5]}
76... Kb3 {[%clk 0:00:08.1]} 77. Nd3 {[%clk 0:00:10.4]} 77... Nxf3+ {[%clk
0:00:08.5]} 78. Ke3 {[%clk 0:00:10.3]} 78... Ne5 {[%clk 0:00:08.7]} 79. Nc5+
{[%clk 0:00:10.7]} 79... Kc2 {[%clk 0:00:08.8]} 80. Nxe6 {[%clk 0:00:11.6]}
80... Nc4+ {[%clk 0:00:08.9]} 81. Ke2 {[%clk 0:00:11.5]} 81... Bc3 {[%clk
0:00:08.9]} 82. Nxg5 {[%clk 0:00:11.6]} 82... b4 {[%clk 0:00:09]} 83. Nf3 {[%clk
0:00:11.4]} 83... b3 {[%clk 0:00:09]} 84. Kf2 {[%clk 0:00:07.4]} 84... b2 {[%clk
0:00:09.2]} 85. Kg3 {[%clk 0:00:07.9]} 85... b1=Q {[%clk 0:00:09.7]} 86. Kf4
{[%clk 0:00:08.6]} 86... Qf1 {[%clk 0:00:09.9]} 87. Kg4 {[%clk 0:00:08.8]} 87...
Qxf3+ {[%clk 0:00:09.8]} 88. Kxf3 {[%clk 0:00:09.4]} 88... d4 {[%clk 0:00:10.5]}
89. Ke4 {[%clk 0:00:09.7]} 89... d3 {[%clk 0:00:10.9]} 90. Kd5 {[%clk
0:00:10.6]} 90... d2 {[%clk 0:00:11.1]} 91. Kc6 {[%clk 0:00:11.3]} 91... d1=Q
{[%clk 0:00:11.3]} 92. Kb5 {[%clk 0:00:12.2]} 92... Qd5+ {[%clk 0:00:11.5]} 93.
Ka6 {[%clk 0:00:10.7]} 93... Qc6+ {[%clk 0:00:11.6]} 94. Ka7 {[%clk 0:00:10.8]}
94... Bd4+ {[%clk 0:00:12.1]} 95. Kb8 {[%clk 0:00:11.6]} 95... Qb6+ {[%clk
0:00:10.9]} 96. Kc8 {[%clk 0:00:12]} 96... Qa7 {[%clk 0:00:10.5]} 97. Kd8 {[%clk
0:00:12.4]} 97... Bf6+ {[%clk 0:00:10.2]} 98. Kc8 {[%clk 0:00:13]} 98... Nd6#
{[%clk 0:00:10.3]} 0-1

[Event "Late-Titled-Tuesday-Blitz-September-19-2023"]
[Site "Chess.com"]
[Date "2023.09.19"]
[Round "11"]
[White "SaqoChess_Twitch"]
[Black "MathiasWomacka"]
[Result "1-0"]
[WhiteElo "2674"]
[BlackElo "2564"]
[TimeControl "180+1"]
[EndTime "16:01:09 PDT"]
[Termination "SaqoChess_Twitch won by resignation"]

1. d4 {[%clk 0:03:00.9]} 1... Nf6 {[%clk 0:02:59]} 2. c4 {[%clk 0:03:01.6]} 2...
e6 {[%clk 0:02:57.6]} 3. Nc3 {[%clk 0:03:02.3]} 3... Bb4 {[%clk 0:02:57.1]} 4.
e3 {[%clk 0:03:03]} 4... c5 {[%clk 0:02:55.2]} 5. a3 {[%clk 0:03:03.3]} 5...
Bxc3+ {[%clk 0:02:54.3]} 6. bxc3 {[%clk 0:03:04.2]} 6... d6 {[%clk 0:02:48.5]}
7. Bd3 {[%clk 0:03:04.5]} 7... Nc6 {[%clk 0:02:47.5]} 8. Ne2 {[%clk 0:03:04.9]}
8... e5 {[%clk 0:02:43.6]} 9. Ng3 {[%clk 0:03:05.5]} 9... O-O {[%clk 0:02:38.9]}
10. O-O {[%clk 0:03:04.4]} 10... b6 {[%clk 0:02:32.3]} 11. d5 {[%clk 0:03:04.6]}
11... Na5 {[%clk 0:02:30.2]} 12. f4 {[%clk 0:03:05.3]} 12... exf4 {[%clk
0:02:28.9]} 13. exf4 {[%clk 0:03:05.6]} 13... Ba6 {[%clk 0:02:23.4]} 14. f5
{[%clk 0:03:05.8]} 14... Bxc4 {[%clk 0:02:22.1]} 15. Bg5 {[%clk 0:03:05.5]}
15... Bxd3 {[%clk 0:02:13.4]} 16. Qxd3 {[%clk 0:03:05.4]} 16... h6 {[%clk
0:02:10.2]} 17. Bh4 {[%clk 0:03:05.3]} 17... Re8 {[%clk 0:01:53.7]} 18. Nh5
{[%clk 0:03:05.7]} 18... c4 {[%clk 0:01:39]} 19. Qf3 {[%clk 0:02:59.1]} 19...
Nb3 {[%clk 0:01:34.7]} 20. Bxf6 {[%clk 0:02:56.3]} 1-0

[Event "Late-Titled-Tuesday-Blitz-September-19-2023"]
[Site "Chess.com"]
[Date "2023.09.19"]
[Round "11"]
[White "ElDivis"]
[Black "GlavkonVVS"]
[Result "0-1"]
[WhiteElo "2530"]
[BlackElo "2613"]
[TimeControl "180+1"]
[EndTime "16:01:28 PDT"]
[Termination "GlavkonVVS won by resignation"]

1. d4 {[%clk 0:02:59.3]} 1... Nf6 {[%clk 0:03:00.1]} 2. Nf3 {[%clk 0:02:59.1]}
2... e6 {[%clk 0:02:59.8]} 3. e3 {[%clk 0:02:58.9]} 3... b6 {[%clk 0:02:59.5]}
4. Bd3 {[%clk 0:02:59.3]} 4... Bb7 {[%clk 0:03:00]} 5. O-O {[%clk 0:03:00]} 5...
Be7 {[%clk 0:03:00.2]} 6. c4 {[%clk 0:03:00.6]} 6... O-O {[%clk 0:03:00.3]} 7.
Nc3 {[%clk 0:03:01.2]} 7... d6 {[%clk 0:03:00.9]} 8. e4 {[%clk 0:02:59.9]} 8...
Nbd7 {[%clk 0:02:59.9]} 9. Bf4 {[%clk 0:02:35.3]} 9... Nh5 {[%clk 0:02:55.2]}
10. Be3 {[%clk 0:02:30.3]} 10... g6 {[%clk 0:02:52.7]} 11. Bh6 {[%clk
0:02:26.3]} 11... Re8 {[%clk 0:02:46.7]} 12. Qd2 {[%clk 0:02:22]} 12... e5
{[%clk 0:02:45.5]} 13. d5 {[%clk 0:02:10.5]} 13... Nc5 {[%clk 0:02:40.8]} 14.
Bc2 {[%clk 0:02:10.8]} 14... a5 {[%clk 0:02:40.1]} 15. b3 {[%clk 0:02:04.3]}
15... Bc8 {[%clk 0:02:38.6]} 16. a3 {[%clk 0:01:52.3]} 16... Bg4 {[%clk
0:02:37.4]} 17. Ng5 {[%clk 0:01:48.2]} 17... Nf4 {[%clk 0:02:29.8]} 18. b4
{[%clk 0:01:18.3]} 18... Bxg5 {[%clk 0:02:26.6]} 0-1

[Event "Late-Titled-Tuesday-Blitz-September-19-2023"]
[Site "Chess.com"]
[Date "2023.09.19"]
[Round "11"]
[White "Dacean99"]
[Black "traack"]
[Result "1-0"]
[WhiteElo "2501"]
[BlackElo "2377"]
[TimeControl "180+1"]
[EndTime "16:02:43 PDT"]
[Termination "Dacean99 won by checkmate"]

1. e4 {[%clk 0:03:00.9]} 1... c5 {[%clk 0:02:56.4]} 2. Nc3 {[%clk 0:02:59]} 2...
e6 {[%clk 0:02:56.5]} 3. g3 {[%clk 0:02:58]} 3... Nc6 {[%clk 0:02:53]} 4. Bg2
{[%clk 0:02:57.9]} 4... Nf6 {[%clk 0:02:53.1]} 5. Nge2 {[%clk 0:02:57.6]} 5...
Be7 {[%clk 0:02:52.3]} 6. d4 {[%clk 0:02:57.1]} 6... cxd4 {[%clk 0:02:52.5]} 7.
Nxd4 {[%clk 0:02:57.7]} 7... a6 {[%clk 0:02:49.5]} 8. O-O {[%clk 0:02:56.1]}
8... Qc7 {[%clk 0:02:47.7]} 9. Bf4 {[%clk 0:02:53]} 9... d6 {[%clk 0:02:42.2]}
10. Nxc6 {[%clk 0:02:49.8]} 10... bxc6 {[%clk 0:02:40.8]} 11. Qd2 {[%clk
0:02:49.7]} 11... e5 {[%clk 0:02:40]} 12. Bg5 {[%clk 0:02:47]} 12... h6 {[%clk
0:02:38.6]} 13. Bxf6 {[%clk 0:02:46.9]} 13... Bxf6 {[%clk 0:02:39.5]} 14. Rad1
{[%clk 0:02:44.8]} 14... Be7 {[%clk 0:02:39.6]} 15. f4 {[%clk 0:02:43.3]} 15...
exf4 {[%clk 0:02:37.2]} 16. gxf4 {[%clk 0:02:44.2]} 16... O-O {[%clk 0:02:27.6]}
17. Kh1 {[%clk 0:02:34.5]} 17... Rb8 {[%clk 0:02:26.8]} 18. b3 {[%clk 0:02:34]}
18... Qa5 {[%clk 0:02:21.4]} 19. Nd5 {[%clk 0:02:30]} 19... Bd8 {[%clk
0:01:53.4]} 20. Ne7+ {[%clk 0:02:24.7]} 20... Kh8 {[%clk 0:01:52.1]} 21. Qxa5
{[%clk 0:02:21.8]} 21... Bxa5 {[%clk 0:01:51.8]} 22. Nxc6 {[%clk 0:02:16.1]}
22... Rb5 {[%clk 0:01:47]} 23. a4 {[%clk 0:02:14.2]} 23... Rc5 {[%clk
0:01:44.9]} 24. Nxa5 {[%clk 0:02:14]} 24... Rxa5 {[%clk 0:01:44.4]} 25. Rxd6
{[%clk 0:02:14.5]} 25... Rc5 {[%clk 0:01:43.9]} 26. c4 {[%clk 0:02:13.9]} 26...
a5 {[%clk 0:01:41.9]} 27. e5 {[%clk 0:02:12.7]} 27... Bg4 {[%clk 0:01:39.7]} 28.
Rd5 {[%clk 0:02:09.5]} 28... Rfc8 {[%clk 0:01:38.4]} 29. Bf3 {[%clk 0:02:06.7]}
29... Be6 {[%clk 0:01:36.3]} 30. Rxc5 {[%clk 0:02:05.2]} 30... Rxc5 {[%clk
0:01:36.5]} 31. Rd1 {[%clk 0:02:04.2]} 31... g5 {[%clk 0:01:36.2]} 32. fxg5
{[%clk 0:02:00]} 32... hxg5 {[%clk 0:01:35.9]} 33. Bd5 {[%clk 0:01:59.9]} 33...
Bf5 {[%clk 0:01:34.9]} 34. Rf1 {[%clk 0:01:56.4]} 34... Bc2 {[%clk 0:01:25.9]}
35. Rxf7 {[%clk 0:01:53.8]} 35... Bxb3 {[%clk 0:01:24.5]} 36. e6 {[%clk
0:01:53.6]} 36... Bxa4 {[%clk 0:01:21.3]} 37. e7 {[%clk 0:01:51.6]} 37... Bc6
{[%clk 0:01:12.8]} 38. Bxc6 {[%clk 0:01:49.4]} 38... Rxc6 {[%clk 0:01:12.5]} 39.
e8=Q# {[%clk 0:01:48.8]} 1-0

[Event "Late-Titled-Tuesday-Blitz-September-19-2023"]
[Site "Chess.com"]
[Date "2023.09.19"]
[Round "11"]
[White "valemava"]
[Black "Quattroporte300"]
[Result "1-0"]
[WhiteElo "2300"]
[BlackElo "2380"]
[TimeControl "180+1"]
[EndTime "16:02:44 PDT"]
[Termination "valemava won by resignation"]

1. e4 {[%clk 0:03:00.9]} 1... c5 {[%clk 0:02:59]} 2. a3 {[%clk 0:03:00.3]} 2...
Nc6 {[%clk 0:02:57.8]} 3. b4 {[%clk 0:03:00.2]} 3... cxb4 {[%clk 0:02:58]} 4.
axb4 {[%clk 0:03:01.1]} 4... Nxb4 {[%clk 0:02:58.4]} 5. c3 {[%clk 0:03:01.6]}
5... Nc6 {[%clk 0:02:58.1]} 6. d4 {[%clk 0:03:02.5]} 6... d5 {[%clk 0:02:58.5]}
7. exd5 {[%clk 0:03:03.2]} 7... Qxd5 {[%clk 0:02:57.4]} 8. Na3 {[%clk
0:03:03.5]} 8... a6 {[%clk 0:02:55.2]} 9. Nb5 {[%clk 0:03:03.5]} 9... Qd8 {[%clk
0:02:29.1]} 10. d5 {[%clk 0:03:03.1]} 10... Ne5 {[%clk 0:02:22.5]} 11. Bf4
{[%clk 0:03:01.7]} 11... f6 {[%clk 0:02:21.2]} 12. Bxe5 {[%clk 0:03:00.4]} 12...
fxe5 {[%clk 0:02:20.9]} 13. Qh5+ {[%clk 0:03:00.2]} 13... Kd7 {[%clk 0:02:17.4]}
14. Qf5+ {[%clk 0:02:58.2]} 14... Ke8 {[%clk 0:02:12.5]} 15. Qxe5 {[%clk
0:02:57.8]} 15... axb5 {[%clk 0:02:00.9]} 16. Rxa8 {[%clk 0:02:54.8]} 16... Nf6
{[%clk 0:01:58.6]} 17. Bxb5+ {[%clk 0:02:54]} 17... Kf7 {[%clk 0:01:59]} 18.
Qe6+ {[%clk 0:02:36.5]} 18... Bxe6 {[%clk 0:01:54.1]} 19. dxe6+ {[%clk
0:02:37.4]} 19... Kxe6 {[%clk 0:01:51.5]} 20. Rxd8 {[%clk 0:02:37.4]} 20... g6
{[%clk 0:01:51.9]} 21. Bc4+ {[%clk 0:02:35.8]} 21... Kf5 {[%clk 0:01:49.6]} 22.
Nf3 {[%clk 0:02:35.6]} 22... e5 {[%clk 0:01:48.7]} 23. O-O {[%clk 0:02:33.2]}
23... h5 {[%clk 0:01:45]} 24. h4 {[%clk 0:02:24.8]} 24... e4 {[%clk 0:01:35.7]}
25. Ng5 {[%clk 0:02:24.3]} 25... b5 {[%clk 0:01:28.5]} 26. Be6+ {[%clk
0:02:23.3]} 26... Ke5 {[%clk 0:01:24.6]} 27. Nf7+ {[%clk 0:02:22.6]} 27... Kxe6
{[%clk 0:01:25.3]} 28. Nxh8 {[%clk 0:02:22.7]} 28... Bc5 {[%clk 0:01:24.1]} 29.
Nxg6 {[%clk 0:02:20]} 29... Ng4 {[%clk 0:01:23.5]} 30. Nf4+ {[%clk 0:02:18.3]}
30... Ke7 {[%clk 0:01:22.4]} 31. Rd5 {[%clk 0:02:17.5]} 31... Ba7 {[%clk
0:01:17.2]} 32. Nh3 {[%clk 0:02:03.4]} 32... e3 {[%clk 0:01:16.2]} 33. Re1
{[%clk 0:02:02.1]} 33... Kf6 {[%clk 0:01:10.6]} 34. fxe3 {[%clk 0:01:58.5]}
34... Nxe3 {[%clk 0:01:09.3]} 35. Rxe3 {[%clk 0:01:56.8]} 35... Bxe3+ {[%clk
0:01:08.7]} 36. Kf1 {[%clk 0:01:56.7]} 36... Ke6 {[%clk 0:01:01.9]} 37. Rxb5
{[%clk 0:01:55.7]} 1-0

[Event "Late-Titled-Tuesday-Blitz-September-19-2023"]
[Site "Chess.com"]
[Date "2023.09.19"]
[Round "11"]
[White "sergiochess83"]
[Black "Njal28"]
[Result "0-1"]
[WhiteElo "2896"]
[BlackElo "3102"]
[TimeControl "180+1"]
[EndTime "16:02:46 PDT"]
[Termination "Njal28 won by resignation"]

1. e4 {[%clk 0:03:00.9]} 1... c5 {[%clk 0:03:00.7]} 2. Nf3 {[%clk 0:03:00.7]}
2... Nc6 {[%clk 0:03:01.4]} 3. Bb5 {[%clk 0:02:58.2]} 3... Nf6 {[%clk
0:03:00.7]} 4. Nc3 {[%clk 0:02:42.8]} 4... d6 {[%clk 0:03:00.9]} 5. e5 {[%clk
0:02:31.5]} 5... Nd7 {[%clk 0:03:01]} 6. exd6 {[%clk 0:02:26.2]} 6... e5 {[%clk
0:03:01.6]} 7. O-O {[%clk 0:02:11.1]} 7... Bxd6 {[%clk 0:03:01.9]} 8. Bxc6
{[%clk 0:02:02.1]} 8... bxc6 {[%clk 0:03:02.1]} 9. d3 {[%clk 0:02:03]} 9... O-O
{[%clk 0:03:02.4]} 10. Nd2 {[%clk 0:02:02.3]} 10... f5 {[%clk 0:02:55.6]} 11.
Nc4 {[%clk 0:02:01.3]} 11... Bc7 {[%clk 0:02:55.1]} 12. f4 {[%clk 0:02:00.9]}
12... Ba6 {[%clk 0:02:36.8]} 13. b3 {[%clk 0:01:32.8]} 13... Qf6 {[%clk
0:02:26.2]} 14. Bb2 {[%clk 0:01:17.7]} 14... Qh6 {[%clk 0:02:22.6]} 15. Qf3
{[%clk 0:01:05.5]} 15... exf4 {[%clk 0:02:22.7]} 16. Rae1 {[%clk 0:01:01.4]}
16... Bxc4 {[%clk 0:02:19.9]} 17. dxc4 {[%clk 0:00:57.5]} 17... Ne5 {[%clk
0:02:12]} 18. Qxf4 {[%clk 0:00:46.7]} 18... Qxf4 {[%clk 0:02:11.4]} 19. Rxf4
{[%clk 0:00:47.6]} 19... Nd3 {[%clk 0:02:10.8]} 20. cxd3 {[%clk 0:00:44.6]}
20... Bxf4 {[%clk 0:02:11.4]} 21. Na4 {[%clk 0:00:44.3]} 21... Rfe8 {[%clk
0:02:00.6]} 22. Rf1 {[%clk 0:00:22.8]} 22... Be3+ {[%clk 0:01:59.4]} 23. Kh1
{[%clk 0:00:23.3]} 23... Rad8 {[%clk 0:01:59.5]} 0-1

[Event "Late-Titled-Tuesday-Blitz-September-19-2023"]
[Site "Chess.com"]
[Date "2023.09.19"]
[Round "11"]
[White "talaicito"]
[Black "miraitrunks"]
[Result "1-0"]
[WhiteElo "2195"]
[BlackElo "2142"]
[TimeControl "180+1"]
[EndTime "16:02:49 PDT"]
[Termination "talaicito won by checkmate"]

1. d4 {[%clk 0:02:57.3]} 1... Nf6 {[%clk 0:02:58.7]} 2. Nc3 {[%clk 0:02:57.1]}
2... c5 {[%clk 0:02:59]} 3. d5 {[%clk 0:02:54.7]} 3... d6 {[%clk 0:02:58.5]} 4.
e4 {[%clk 0:02:55.2]} 4... g6 {[%clk 0:02:58.5]} 5. Nf3 {[%clk 0:02:52.7]} 5...
Bg7 {[%clk 0:02:58.4]} 6. Nd2 {[%clk 0:02:52.6]} 6... O-O {[%clk 0:02:58.4]} 7.
Be2 {[%clk 0:02:51.9]} 7... a6 {[%clk 0:02:58.2]} 8. a4 {[%clk 0:02:51.6]} 8...
Nbd7 {[%clk 0:02:58.1]} 9. O-O {[%clk 0:02:50.4]} 9... Rb8 {[%clk 0:02:58]} 10.
f4 {[%clk 0:02:47.4]} 10... e6 {[%clk 0:02:57.9]} 11. dxe6 {[%clk 0:02:45.1]}
11... fxe6 {[%clk 0:02:58.5]} 12. Nc4 {[%clk 0:02:43.5]} 12... d5 {[%clk
0:02:49]} 13. exd5 {[%clk 0:02:43.4]} 13... Nb6 {[%clk 0:02:47.4]} 14. d6 {[%clk
0:02:29.2]} 14... Nfd5 {[%clk 0:02:43.1]} 15. Ne5 {[%clk 0:01:58.1]} 15... Qxd6
{[%clk 0:02:27.6]} 16. a5 {[%clk 0:01:54.3]} 16... Nd7 {[%clk 0:02:01]} 17. Nc4
{[%clk 0:01:54.1]} 17... Qe7 {[%clk 0:02:00.3]} 18. Nxd5 {[%clk 0:01:51.8]}
18... exd5 {[%clk 0:02:00.2]} 19. Qxd5+ {[%clk 0:01:51.9]} 19... Kh8 {[%clk
0:02:00.7]} 20. Bf3 {[%clk 0:01:35.2]} 20... Bd4+ {[%clk 0:01:56.4]} 21. Kh1
{[%clk 0:01:33.4]} 21... Nf6 {[%clk 0:01:56.5]} 22. Qd6 {[%clk 0:01:27.5]} 22...
Qf7 {[%clk 0:01:40.7]} 23. Ne5 {[%clk 0:01:22]} 23... Bxe5 {[%clk 0:01:40.3]}
24. fxe5 {[%clk 0:01:22.1]} 24... Nd7 {[%clk 0:01:40.5]} 25. Bh6 {[%clk
0:01:17.7]} 25... Re8 {[%clk 0:01:32.2]} 26. Bd5 {[%clk 0:01:01.1]} 26... Qe7
{[%clk 0:01:28.5]} 27. Qxe7 {[%clk 0:01:01.2]} 27... Rxe7 {[%clk 0:01:28.2]} 28.
e6 {[%clk 0:01:02.1]} 28... Ne5 {[%clk 0:01:25.3]} 29. Rf8# {[%clk 0:01:00]} 1-0

[Event "Late-Titled-Tuesday-Blitz-September-19-2023"]
[Site "Chess.com"]
[Date "2023.09.19"]
[Round "11"]
[White "hellokostya"]
[Black "reevecanada"]
[Result "0-1"]
[WhiteElo "2600"]
[BlackElo "2537"]
[TimeControl "180+1"]
[EndTime "16:03:17 PDT"]
[Termination "reevecanada won by resignation"]

1. Nf3 {[%clk 0:02:54.7]} 1... d5 {[%clk 0:02:57.6]} 2. e3 {[%clk 0:02:53.7]}
2... Nd7 {[%clk 0:02:57.6]} 3. c4 {[%clk 0:02:53.2]} 3... c6 {[%clk 0:02:57.3]}
4. Nc3 {[%clk 0:02:48.5]} 4... e6 {[%clk 0:02:56.6]} 5. b3 {[%clk 0:02:45.8]}
5... Ngf6 {[%clk 0:02:55.9]} 6. Bb2 {[%clk 0:02:45.8]} 6... e5 {[%clk
0:02:56.4]} 7. Be2 {[%clk 0:02:33.7]} 7... a6 {[%clk 0:02:54.7]} 8. cxd5 {[%clk
0:02:31.2]} 8... cxd5 {[%clk 0:02:53]} 9. d4 {[%clk 0:02:31.8]} 9... e4 {[%clk
0:02:53]} 10. Ne5 {[%clk 0:02:32.5]} 10... Bd6 {[%clk 0:02:53.1]} 11. Na4 {[%clk
0:02:24.3]} 11... O-O {[%clk 0:02:49.1]} 12. O-O {[%clk 0:02:24.1]} 12... Qe7
{[%clk 0:02:48.1]} 13. Nxd7 {[%clk 0:02:22.5]} 13... Bxd7 {[%clk 0:02:47.3]} 14.
Nb6 {[%clk 0:02:19.8]} 14... Rad8 {[%clk 0:02:26.3]} 15. Rc1 {[%clk 0:02:17.1]}
15... Bxh2+ {[%clk 0:02:25.8]} 16. Kxh2 {[%clk 0:02:14]} 16... Qd6+ {[%clk
0:02:26]} 17. Kg1 {[%clk 0:02:11.5]} 17... Qxb6 {[%clk 0:02:25.9]} 18. Ba3
{[%clk 0:02:11.4]} 18... Rfe8 {[%clk 0:02:25.4]} 19. Bc5 {[%clk 0:02:07.7]}
19... Qe6 {[%clk 0:02:25.1]} 20. Rc3 {[%clk 0:01:59.4]} 20... Qf5 {[%clk
0:02:24.2]} 21. Bd6 {[%clk 0:01:54.5]} 21... Qg6 {[%clk 0:02:21.4]} 22. Bg3
{[%clk 0:01:51.4]} 22... h5 {[%clk 0:02:20.2]} 23. Bh4 {[%clk 0:01:47.7]} 23...
Bh3 {[%clk 0:02:17.5]} 24. g3 {[%clk 0:01:30.3]} 24... Bxf1 {[%clk 0:02:15.2]}
25. Qxf1 {[%clk 0:01:31.2]} 25... Rc8 {[%clk 0:02:13.4]} 26. Qc1 {[%clk
0:01:29.4]} 26... Qf5 {[%clk 0:02:12]} 27. Bxf6 {[%clk 0:01:17.4]} 27... gxf6
{[%clk 0:02:09]} 28. Kf1 {[%clk 0:01:15.8]} 28... Qh3+ {[%clk 0:02:06]} 29. Ke1
{[%clk 0:01:14.9]} 29... Rxc3 {[%clk 0:02:03.9]} 30. Qxc3 {[%clk 0:01:15.8]}
30... Rc8 {[%clk 0:02:03.2]} 31. Qd2 {[%clk 0:01:14.6]} 31... h4 {[%clk
0:02:01.6]} 32. gxh4 {[%clk 0:01:13.9]} 32... Qxh4 {[%clk 0:02:00]} 33. Bf1
{[%clk 0:01:12.7]} 33... f5 {[%clk 0:01:59.5]} 34. Kd1 {[%clk 0:01:03.5]} 34...
Qg4+ {[%clk 0:01:56.1]} 35. Ke1 {[%clk 0:01:01.8]} 35... Rc7 {[%clk 0:01:55.1]}
36. Be2 {[%clk 0:01:01]} 36... Qh4 {[%clk 0:01:53.6]} 37. Bf1 {[%clk 0:00:58.8]}
37... f4 {[%clk 0:01:53.5]} 38. exf4 {[%clk 0:00:57.7]} 38... e3 {[%clk
0:01:53.8]} 0-1